[Event "Titled Tuesday Blitz June 13 Late 2023"]
[White "Bogaudinov, Rushan"]
[Black "Golubev, Mikhail"]
[WhiteFideId "4129288"]
[BlackFideId "14100983"]
[WhiteElo "1967"]
[BlackElo "2374"]
[Result "1-0"]
[Round "6"]
[TimeControl "180+2"]
[Date "2023.06.13"]
[WhiteClock "0:00:17"]
[BlackClock "0:00:00"]
[Board "115"]

1. e4 {[%clk 0:03:00]}  c5 {[%clk 0:02:59]} 2. Nf3 {[%clk 0:03:00]}  d6 {[%clk 0:02:59]} 3. d4 {[%clk 0:03:00]}  cxd4 {[%clk 0:02:59]} 4. Nxd4 {[%clk 0:03:01]}  Nf6 {[%clk 0:02:59]} 5. Nc3 {[%clk 0:03:01]}  g6 {[%clk 0:02:59]} 6. Be3 {[%clk 0:02:57]}  Bg7 {[%clk 0:02:59]} 7. Qd2 {[%clk 0:02:52]}  Nc6 {[%clk 0:02:36]} 8. Nb3 {[%clk 0:02:45]}  O-O {[%clk 0:02:32]} 9. h3 {[%clk 0:02:39]}  Be6 {[%clk 0:02:29]} 10. Be2 {[%clk 0:02:35]}  d5 {[%clk 0:02:24]} 11. exd5 {[%clk 0:02:27]}  Nxd5 {[%clk 0:02:24]} 12. Nxd5 {[%clk 0:02:21]}  Bxd5 {[%clk 0:02:03]} 13. O-O {[%clk 0:02:07]}  Bxb2 {[%clk 0:01:45]} 14. Rad1 {[%clk 0:02:02]}  Bxb3 {[%clk 0:01:39]} 15. cxb3 {[%clk 0:01:58]}  Qxd2 {[%clk 0:01:35]} 16. Rxd2 {[%clk 0:01:59]}  Bg7 {[%clk 0:01:33]} 17. Rd7 {[%clk 0:01:55]}  Rab8 {[%clk 0:01:18]} 18. Bf3 {[%clk 0:01:44]}  Ne5 {[%clk 0:01:14]} 19. Rxe7 {[%clk 0:01:37]}  Nxf3+ {[%clk 0:01:13]} 20. gxf3 {[%clk 0:01:38]}  Rfe8 {[%clk 0:00:58]} 21. Rd7 {[%clk 0:01:29]}  a6 {[%clk 0:00:51]} 22. Rfd1 {[%clk 0:01:20]}  b5 {[%clk 0:00:39]} 23. Ra7 {[%clk 0:01:13]}  Ra8 {[%clk 0:00:38]} 24. Rdd7 {[%clk 0:01:07]}  Bf8 {[%clk 0:00:13]} 25. Rxf7 {[%clk 0:00:55]}  Rxa7 {[%clk 0:00:13]} 26. Rxa7 {[%clk 0:00:52]}  Re6 {[%clk 0:00:13]} 27. f4 {[%clk 0:00:41]}  Be7 {[%clk 0:00:10]} 28. Kg2 {[%clk 0:00:39]}  Kf8 {[%clk 0:00:10]} 29. Kf3 {[%clk 0:00:36]}  Ke8 {[%clk 0:00:10]} 30. Bd4 {[%clk 0:00:27]}  Kd8 {[%clk 0:00:07]} 31. Be5 {[%clk 0:00:24]}  Kc8 {[%clk 0:00:05]} 32. Ke4 {[%clk 0:00:22]}  Bc5 {[%clk 0:00:03]} 33. Rxh7 {[%clk 0:00:20]}  Bxf2 {[%clk 0:00:01]} 34. Kd5 {[%clk 0:00:20]}  Re8 {[%clk 0:00:01]} 35. Rc7+ {[%clk 0:00:18]}  Kd8 {[%clk 0:00:00]} 36. Rb7 {[%clk 0:00:17]} 1-0


[Site "https://www.chess.com"]

[Event "Titled Tuesday Blitz June 13 Late 2023"]
[White "Koutlas, Nikolaos"]
[Black "Arias Igual, Alejandro"]
[WhiteFideId "25827138"]
[BlackFideId "2254905"]
[WhiteElo "2215"]
[BlackElo "2179"]
[Result "0-1"]
[Round "6"]
[TimeControl "180+2"]
[Date "2023.06.13"]
[WhiteClock "0:01:04"]
[BlackClock "0:00:48"]
[Board "119"]

1. Nf3 {[%clk 0:02:26]}  d5 {[%clk 0:02:58]} 2. g3 {[%clk 0:02:24]}  e6 {[%clk 0:02:58]} 3. Bg2 {[%clk 0:02:24]}  Nf6 {[%clk 0:02:59]} 4. O-O {[%clk 0:02:25]}  Be7 {[%clk 0:02:59]} 5. c3 {[%clk 0:02:26]}  O-O {[%clk 0:02:57]} 6. b4 {[%clk 0:02:26]}  a5 {[%clk 0:02:55]} 7. b5 {[%clk 0:02:26]}  c5 {[%clk 0:02:52]} 8. bxc6 {[%clk 0:02:26]}  Nxc6 {[%clk 0:02:52]} 9. Ba3 {[%clk 0:02:25]}  e5 {[%clk 0:02:48]} 10. d3 {[%clk 0:02:19]}  Re8 {[%clk 0:02:45]} 11. Bxe7 {[%clk 0:02:07]}  Qxe7 {[%clk 0:02:46]} 12. Nfd2 {[%clk 0:02:00]}  Bg4 {[%clk 0:02:42]} 13. c4 {[%clk 0:01:58]}  d4 {[%clk 0:02:27]} 14. Ne4 {[%clk 0:01:53]}  Nxe4 {[%clk 0:02:23]} 15. Bxe4 {[%clk 0:01:52]}  f5 {[%clk 0:02:23]} 16. Bg2 {[%clk 0:01:50]}  e4 {[%clk 0:02:22]} 17. dxe4 {[%clk 0:01:38]}  fxe4 {[%clk 0:02:23]} 18. Nd2 {[%clk 0:01:37]}  d3 {[%clk 0:01:56]} 19. f3 {[%clk 0:01:36]}  Bh5 {[%clk 0:01:44]} 20. exd3 {[%clk 0:01:32]}  exd3 {[%clk 0:01:39]} 21. Ne4 {[%clk 0:01:30]}  Rad8 {[%clk 0:01:35]} 22. Re1 {[%clk 0:01:27]}  Kh8 {[%clk 0:01:31]} 23. c5 {[%clk 0:01:26]}  Nb4 {[%clk 0:01:11]} 24. Nd6 {[%clk 0:01:16]}  Qxe1+ {[%clk 0:01:10]} 25. Qxe1 {[%clk 0:01:16]}  Rxe1+ {[%clk 0:01:09]} 26. Rxe1 {[%clk 0:01:17]}  Nxa2 {[%clk 0:01:03]} 27. Nxb7 {[%clk 0:01:16]}  d2 {[%clk 0:00:54]} 28. Rd1 {[%clk 0:01:13]}  Nc3 {[%clk 0:00:54]} 29. Nxd8 {[%clk 0:01:10]}  Nxd1 {[%clk 0:00:54]} 30. c6 {[%clk 0:01:04]}  Ne3 {[%clk 0:00:48]} 0-1


[Site "https://www.chess.com"]

[Event "Titled Tuesday Blitz June 13 Late 2023"]
[White "Ai, Evan"]
[Black "kiwibobo"]
[WhiteFideId "2094770"]
[WhiteElo "1963"]
[BlackElo "2303"]
[Result "0-1"]
[Round "6"]
[TimeControl "180+2"]
[Date "2023.06.13"]
[WhiteClock "0:00:05"]
[BlackClock "0:01:21"]
[Board "122"]

1. e4 {[%clk 0:02:58]}  e5 {[%clk 0:02:59]} 2. Nf3 {[%clk 0:02:58]}  Nc6 {[%clk 0:02:58]} 3. Bc4 {[%clk 0:02:59]}  Nf6 {[%clk 0:02:59]} 4. d3 {[%clk 0:02:59]}  Bc5 {[%clk 0:02:59]} 5. c3 {[%clk 0:02:58]}  a6 {[%clk 0:03:00]} 6. b4 {[%clk 0:02:58]}  Ba7 {[%clk 0:03:00]} 7. a4 {[%clk 0:02:58]}  d6 {[%clk 0:03:00]} 8. O-O {[%clk 0:02:57]}  h6 {[%clk 0:03:01]} 9. h3 {[%clk 0:02:57]}  g5 {[%clk 0:02:59]} 10. Nxg5 {[%clk 0:02:44]}  hxg5 {[%clk 0:02:58]} 11. Bxg5 {[%clk 0:02:45]}  Nb8 {[%clk 0:02:41]} 12. Qf3 {[%clk 0:02:40]}  Nbd7 {[%clk 0:02:39]} 13. Qg3 {[%clk 0:02:16]}  Nh5 {[%clk 0:02:29]} 14. Qh4 {[%clk 0:02:16]}  f6 {[%clk 0:02:28]} 15. Be3 {[%clk 0:02:14]}  Ke7 {[%clk 0:02:04]} 16. Nd2 {[%clk 0:01:34]}  Nf8 {[%clk 0:01:42]} 17. g4 {[%clk 0:00:15]}  Ng6 {[%clk 0:01:38]} 18. Qxh5 {[%clk 0:00:15]}  Rxh5 {[%clk 0:01:38]} 19. gxh5 {[%clk 0:00:16]}  Nf4 {[%clk 0:01:37]} 20. Bxf4 {[%clk 0:00:15]}  exf4 {[%clk 0:01:37]} 21. Kh2 {[%clk 0:00:15]}  Qh8 {[%clk 0:01:33]} 22. Rg1 {[%clk 0:00:16]}  Bxf2 {[%clk 0:01:31]} 23. Rg2 {[%clk 0:00:14]}  Bg3+ {[%clk 0:01:30]} 24. Kg1 {[%clk 0:00:13]}  Qxh5 {[%clk 0:01:30]} 25. Nf1 {[%clk 0:00:12]}  Qxh3 {[%clk 0:01:25]} 26. Nxg3 {[%clk 0:00:12]}  fxg3 {[%clk 0:01:25]} 27. Rf1 {[%clk 0:00:12]}  Bg4 {[%clk 0:01:22]} 28. d4 {[%clk 0:00:05]}  Rh8 {[%clk 0:01:21]} 0-1


[Site "https://www.chess.com"]

[Event "Titled Tuesday Blitz June 13 Late 2023"]
[White "whiteglovethief"]
[Black "Vila Dupla, Aurelio"]
[BlackFideId "2203383"]
[WhiteElo "2483"]
[BlackElo "2009"]
[Result "1-0"]
[Round "6"]
[TimeControl "180+2"]
[Date "2023.06.13"]
[WhiteClock "0:01:58"]
[BlackClock "0:00:00"]
[Board "123"]

1. d4 {[%clk 0:03:00]}  Nf6 {[%clk 0:02:57]} 2. c4 {[%clk 0:03:00]}  g6 {[%clk 0:02:57]} 3. Nc3 {[%clk 0:03:00]}  d5 {[%clk 0:02:57]} 4. cxd5 {[%clk 0:03:01]}  Nxd5 {[%clk 0:02:57]} 5. e4 {[%clk 0:03:02]}  Nxc3 {[%clk 0:02:57]} 6. bxc3 {[%clk 0:03:03]}  Bg7 {[%clk 0:02:57]} 7. Nf3 {[%clk 0:03:04]}  c5 {[%clk 0:02:55]} 8. Rb1 {[%clk 0:03:04]}  O-O {[%clk 0:02:54]} 9. Be2 {[%clk 0:03:04]}  cxd4 {[%clk 0:02:54]} 10. cxd4 {[%clk 0:03:05]}  Qa5+ {[%clk 0:02:54]} 11. Bd2 {[%clk 0:03:06]}  Qxa2 {[%clk 0:02:54]} 12. O-O {[%clk 0:03:06]}  Bg4 {[%clk 0:02:53]} 13. Bg5 {[%clk 0:03:05]}  Rd8 {[%clk 0:02:49]} 14. Rxb7 {[%clk 0:02:44]}  Bxf3 {[%clk 0:02:46]} 15. Bxf3 {[%clk 0:02:44]}  Bxd4 {[%clk 0:02:45]} 16. Qc1 {[%clk 0:02:19]}  Bf6 {[%clk 0:01:30]} 17. e5 {[%clk 0:02:03]}  Bxe5 {[%clk 0:00:00]} 18. Rxe7 {[%clk 0:01:58]} 1-0


[Site "https://www.chess.com"]

[Event "Titled Tuesday Blitz June 13 Late 2023"]
[White "Krasteva, Beloslava"]
[Black "Rottenwohrer Suarez, Juan"]
[WhiteFideId "2922029"]
[BlackFideId "32068182"]
[WhiteElo "2187"]
[BlackElo "2174"]
[Result "0-1"]
[Round "6"]
[TimeControl "180+2"]
[Date "2023.06.13"]
[WhiteClock "0:00:00"]
[BlackClock "0:00:32"]
[Board "124"]

1. c4 {[%clk 0:03:00]}  Nf6 {[%clk 0:02:44]} 2. Nf3 {[%clk 0:02:59]}  g6 {[%clk 0:02:44]} 3. g3 {[%clk 0:02:58]}  Bg7 {[%clk 0:02:45]} 4. Bg2 {[%clk 0:02:59]}  b6 {[%clk 0:02:45]} 5. Nc3 {[%clk 0:02:51]}  Bb7 {[%clk 0:02:46]} 6. b3 {[%clk 0:02:50]}  Ne4 {[%clk 0:02:44]} 7. Nxe4 {[%clk 0:02:20]}  Bxe4 {[%clk 0:02:22]} 8. d4 {[%clk 0:02:19]}  c5 {[%clk 0:02:16]} 9. Bb2 {[%clk 0:02:18]}  Nc6 {[%clk 0:02:14]} 10. e3 {[%clk 0:02:07]}  cxd4 {[%clk 0:02:13]} 11. exd4 {[%clk 0:02:04]}  d5 {[%clk 0:02:12]} 12. O-O {[%clk 0:01:59]}  O-O {[%clk 0:02:12]} 13. Ne5 {[%clk 0:01:45]}  Nxe5 {[%clk 0:02:00]} 14. Bxe4 {[%clk 0:01:28]}  Nxc4 {[%clk 0:01:57]} 15. bxc4 {[%clk 0:00:53]}  dxe4 {[%clk 0:01:56]} 16. Re1 {[%clk 0:00:53]}  f5 {[%clk 0:01:56]} 17. Qb3 {[%clk 0:00:35]}  Bxd4 {[%clk 0:01:24]} 18. Rad1 {[%clk 0:00:35]}  e5 {[%clk 0:01:24]} 19. c5+ {[%clk 0:00:28]}  Kg7 {[%clk 0:01:24]} 20. c6 {[%clk 0:00:28]}  Qf6 {[%clk 0:00:55]} 21. Bxd4 {[%clk 0:00:11]}  exd4 {[%clk 0:00:55]} 22. Qd5 {[%clk 0:00:10]}  Rad8 {[%clk 0:00:47]} 23. Qb5 {[%clk 0:00:05]}  d3 {[%clk 0:00:45]} 24. c7 {[%clk 0:00:05]}  Rc8 {[%clk 0:00:40]} 25. Qd7+ {[%clk 0:00:01]}  Kh8 {[%clk 0:00:36]} 26. Qd4 {[%clk 0:00:00]}  Qxd4 {[%clk 0:00:32]} 0-1


[Site "https://www.chess.com"]

[Event "Titled Tuesday Blitz June 13 Late 2023"]
[White "Uzcategui Rodriguez, Alejandro"]
[Black "Klinova, Masha"]
[WhiteFideId "3903400"]
[BlackFideId "2802015"]
[WhiteElo "2252"]
[BlackElo "2241"]
[Result "1-0"]
[Round "6"]
[TimeControl "180+2"]
[Date "2023.06.13"]
[WhiteClock "0:00:14"]
[BlackClock "0:00:31"]
[Board "125"]

1. d4 {[%clk 0:02:58]}  d6 {[%clk 0:03:00]} 2. Nf3 {[%clk 0:02:57]}  g6 {[%clk 0:02:59]} 3. Bg5 {[%clk 0:02:55]}  Bg7 {[%clk 0:02:59]} 4. Nbd2 {[%clk 0:02:55]}  Nd7 {[%clk 0:03:00]} 5. e3 {[%clk 0:02:55]}  h6 {[%clk 0:03:00]} 6. Bh4 {[%clk 0:02:55]}  Ngf6 {[%clk 0:03:00]} 7. Bc4 {[%clk 0:02:54]}  O-O {[%clk 0:02:59]} 8. c3 {[%clk 0:02:53]}  g5 {[%clk 0:02:58]} 9. Bg3 {[%clk 0:02:53]}  Nh5 {[%clk 0:02:53]} 10. Qe2 {[%clk 0:02:24]}  Ndf6 {[%clk 0:02:52]} 11. O-O-O {[%clk 0:02:23]}  d5 {[%clk 0:02:50]} 12. Bd3 {[%clk 0:02:22]}  Nxg3 {[%clk 0:02:36]} 13. hxg3 {[%clk 0:02:21]}  Bg4 {[%clk 0:02:37]} 14. e4 {[%clk 0:02:20]}  dxe4 {[%clk 0:02:34]} 15. Nxe4 {[%clk 0:02:20]}  Qd5 {[%clk 0:02:24]} 16. Kb1 {[%clk 0:02:07]}  c6 {[%clk 0:02:12]} 17. Nxf6+ {[%clk 0:01:56]}  exf6 {[%clk 0:02:11]} 18. Bc4 {[%clk 0:01:53]}  Qd7 {[%clk 0:02:06]} 19. Qc2 {[%clk 0:01:52]}  b5 {[%clk 0:01:53]} 20. Bd3 {[%clk 0:01:51]}  Rfe8 {[%clk 0:01:52]} 21. Rde1 {[%clk 0:01:50]}  a5 {[%clk 0:01:51]} 22. Nd2 {[%clk 0:01:35]}  a4 {[%clk 0:01:46]} 23. f3 {[%clk 0:01:34]}  Be6 {[%clk 0:01:46]} 24. g4 {[%clk 0:01:32]}  Qd5 {[%clk 0:01:39]} 25. a3 {[%clk 0:01:23]}  Qa2+ {[%clk 0:01:36]} 26. Kc1 {[%clk 0:01:24]}  Bb3 {[%clk 0:01:30]} 27. Nxb3 {[%clk 0:01:22]}  axb3 {[%clk 0:01:31]} 28. Rxe8+ {[%clk 0:01:04]}  Rxe8 {[%clk 0:01:30]} 29. Qb1 {[%clk 0:01:04]}  Kf8 {[%clk 0:01:28]} 30. Qxa2 {[%clk 0:00:57]}  bxa2 {[%clk 0:01:27]} 31. Kd2 {[%clk 0:00:58]}  Ke7 {[%clk 0:00:58]} 32. Ra1 {[%clk 0:00:56]}  Kd7 {[%clk 0:00:58]} 33. Rxa2 {[%clk 0:00:54]}  Bf8 {[%clk 0:00:58]} 34. Ra1 {[%clk 0:00:21]}  Bd6 {[%clk 0:00:57]} 35. Re1 {[%clk 0:00:20]}  Bf4+ {[%clk 0:00:56]} 36. Kd1 {[%clk 0:00:20]}  Rxe1+ {[%clk 0:00:53]} 37. Kxe1 {[%clk 0:00:20]}  Kd6 {[%clk 0:00:54]} 38. Kd1 {[%clk 0:00:20]}  Be3 {[%clk 0:00:49]} 39. Kc2 {[%clk 0:00:19]}  Bf4 {[%clk 0:00:49]} 40. Kb3 {[%clk 0:00:18]}  Bc1 {[%clk 0:00:47]} 41. Kc2 {[%clk 0:00:18]}  Bf4 {[%clk 0:00:47]} 42. b3 {[%clk 0:00:19]}  Kc7 {[%clk 0:00:45]} 43. a4 {[%clk 0:00:19]}  Kb6 {[%clk 0:00:44]} 44. Bh7 {[%clk 0:00:15]}  c5 {[%clk 0:00:40]} 45. Bg8 {[%clk 0:00:13]}  bxa4 {[%clk 0:00:38]} 46. bxa4 {[%clk 0:00:13]}  cxd4 {[%clk 0:00:38]} 47. cxd4 {[%clk 0:00:13]}  Ka5 {[%clk 0:00:39]} 48. Kb3 {[%clk 0:00:13]}  Be3 {[%clk 0:00:38]} 49. d5 {[%clk 0:00:13]}  Bf4 {[%clk 0:00:38]} 50. Bxf7 {[%clk 0:00:14]}  Bd6 {[%clk 0:00:38]} 51. Be8 {[%clk 0:00:14]}  Bc5 {[%clk 0:00:37]} 52. Bb5 {[%clk 0:00:14]}  Bd6 {[%clk 0:00:37]} 53. Kc4 {[%clk 0:00:15]}  Ba3 {[%clk 0:00:36]} 54. Kd3 {[%clk 0:00:14]}  Bd6 {[%clk 0:00:36]} 55. Ke4 {[%clk 0:00:15]}  Kb4 {[%clk 0:00:37]} 56. Kf5 {[%clk 0:00:16]}  Be5 {[%clk 0:00:37]} 57. Ke6 {[%clk 0:00:17]}  Kc5 {[%clk 0:00:36]} 58. Bd3 {[%clk 0:00:15]}  Bd6 {[%clk 0:00:35]} 59. a5 {[%clk 0:00:15]}  Be5 {[%clk 0:00:34]} 60. a6 {[%clk 0:00:15]}  Kb6 {[%clk 0:00:31]} 61. d6 {[%clk 0:00:14]} 1-0


[Site "https://www.chess.com"]

[Event "Titled Tuesday Blitz June 13 Late 2023"]
[White "Martinez, Ayelen"]
[Black "Yurasova, Daria"]
[WhiteFideId "118702"]
[BlackFideId "34146919"]
[WhiteElo "2074"]
[BlackElo "2109"]
[Result "0-1"]
[Round "6"]
[TimeControl "180+2"]
[Date "2023.06.13"]
[WhiteClock "0:00:04"]
[BlackClock "0:00:10"]
[Board "126"]

1. e4 {[%clk 0:03:00]}  e5 {[%clk 0:02:55]} 2. Nf3 {[%clk 0:03:00]}  Nc6 {[%clk 0:02:56]} 3. Bb5 {[%clk 0:03:00]}  Nge7 {[%clk 0:02:54]} 4. O-O {[%clk 0:02:54]}  g6 {[%clk 0:02:51]} 5. d4 {[%clk 0:02:46]}  exd4 {[%clk 0:02:49]} 6. c3 {[%clk 0:02:41]}  Bg7 {[%clk 0:02:43]} 7. cxd4 {[%clk 0:02:41]}  O-O {[%clk 0:02:43]} 8. d5 {[%clk 0:02:38]}  a6 {[%clk 0:02:43]} 9. Bc4 {[%clk 0:02:32]}  b5 {[%clk 0:02:39]} 10. Be2 {[%clk 0:02:18]}  Na5 {[%clk 0:02:29]} 11. d6 {[%clk 0:02:13]}  cxd6 {[%clk 0:02:28]} 12. Nc3 {[%clk 0:02:11]}  Bb7 {[%clk 0:02:26]} 13. Qxd6 {[%clk 0:02:08]}  h6 {[%clk 0:01:42]} 14. Rd1 {[%clk 0:02:01]}  Bc6 {[%clk 0:01:38]} 15. Nd5 {[%clk 0:01:46]}  Bxd5 {[%clk 0:01:34]} 16. exd5 {[%clk 0:01:47]}  Nf5 {[%clk 0:01:34]} 17. Qb4 {[%clk 0:01:40]}  Nb7 {[%clk 0:01:25]} 18. a4 {[%clk 0:01:35]}  Re8 {[%clk 0:01:19]} 19. Bf1 {[%clk 0:01:28]}  Nbd6 {[%clk 0:01:08]} 20. Bd3 {[%clk 0:00:59]}  a5 {[%clk 0:01:05]} 21. Qg4 {[%clk 0:00:51]}  b4 {[%clk 0:00:51]} 22. Bf4 {[%clk 0:00:50]}  h5 {[%clk 0:00:27]} 23. Qh3 {[%clk 0:00:45]}  Bxb2 {[%clk 0:00:24]} 24. g4 {[%clk 0:00:20]}  Nd4 {[%clk 0:00:21]} 25. Nxd4 {[%clk 0:00:18]}  Bxd4 {[%clk 0:00:20]} 26. Bxd6 {[%clk 0:00:18]}  Qf6 {[%clk 0:00:19]} 27. g5 {[%clk 0:00:14]}  Qxd6 {[%clk 0:00:14]} 28. Bxg6 {[%clk 0:00:10]}  Bxa1 {[%clk 0:00:08]} 29. Bxf7+ {[%clk 0:00:09]}  Kxf7 {[%clk 0:00:08]} 30. Qf5+ {[%clk 0:00:09]}  Kg7 {[%clk 0:00:08]} 31. Rxa1 {[%clk 0:00:10]}  Qe5 {[%clk 0:00:07]} 32. Qxd7+ {[%clk 0:00:09]}  Re7 {[%clk 0:00:08]} 33. Qc6 {[%clk 0:00:06]}  Qxa1+ {[%clk 0:00:08]} 34. Kg2 {[%clk 0:00:07]}  Rf8 {[%clk 0:00:07]} 35. Qh6+ {[%clk 0:00:07]}  Kf7 {[%clk 0:00:08]} 36. Qf6+ {[%clk 0:00:05]}  Qxf6 {[%clk 0:00:08]} 37. gxf6 {[%clk 0:00:05]}  Kxf6 {[%clk 0:00:09]} 38. f3 {[%clk 0:00:05]}  Rd7 {[%clk 0:00:09]} 39. Kf2 {[%clk 0:00:05]}  Rxd5 {[%clk 0:00:10]} 40. Ke3 {[%clk 0:00:04]}  Re8+ {[%clk 0:00:10]} 0-1


[Site "https://www.chess.com"]

[Event "Titled Tuesday Blitz June 13 Late 2023"]
[White "campochess"]
[Black "Zaitsev, Alexander"]
[BlackFideId "4164490"]
[WhiteElo "2226"]
[BlackElo "2373"]
[Result "0-1"]
[Round "6"]
[TimeControl "180+2"]
[Date "2023.06.13"]
[WhiteClock "0:01:22"]
[BlackClock "0:01:03"]
[Board "127"]

1. e4 {[%clk 0:02:53]}  c5 {[%clk 0:03:00]} 2. Na3 {[%clk 0:02:52]}  g6 {[%clk 0:02:59]} 3. c3 {[%clk 0:02:51]}  Bg7 {[%clk 0:02:55]} 4. d4 {[%clk 0:02:51]}  cxd4 {[%clk 0:02:56]} 5. cxd4 {[%clk 0:02:51]}  d5 {[%clk 0:02:57]} 6. e5 {[%clk 0:02:50]}  a6 {[%clk 0:02:57]} 7. Nf3 {[%clk 0:02:48]}  Nc6 {[%clk 0:02:58]} 8. Nc2 {[%clk 0:02:46]}  f6 {[%clk 0:02:58]} 9. Bf4 {[%clk 0:02:43]}  Bg4 {[%clk 0:02:31]} 10. Be2 {[%clk 0:02:42]}  Nh6 {[%clk 0:02:19]} 11. h3 {[%clk 0:02:37]}  Bxf3 {[%clk 0:02:18]} 12. Bxf3 {[%clk 0:02:37]}  fxe5 {[%clk 0:02:12]} 13. dxe5 {[%clk 0:02:35]}  e6 {[%clk 0:02:11]} 14. Qe2 {[%clk 0:02:29]}  O-O {[%clk 0:02:09]} 15. Bh2 {[%clk 0:02:27]}  Qa5+ {[%clk 0:01:47]} 16. b4 {[%clk 0:02:18]}  Nxb4 {[%clk 0:01:47]} 17. O-O {[%clk 0:02:17]}  Nxc2 {[%clk 0:01:45]} 18. Qxc2 {[%clk 0:02:17]}  Rac8 {[%clk 0:01:30]} 19. Qb2 {[%clk 0:02:12]}  b5 {[%clk 0:01:26]} 20. a4 {[%clk 0:02:10]}  b4 {[%clk 0:01:13]} 21. Rfc1 {[%clk 0:02:06]}  Rc3 {[%clk 0:01:12]} 22. Rcb1 {[%clk 0:01:43]}  Nf5 {[%clk 0:01:03]} 23. Qxb4 {[%clk 0:01:22]}  Rc1+ {[%clk 0:01:03]} 0-1


[Site "https://www.chess.com"]

[Event "Titled Tuesday Blitz June 13 Late 2023"]
[White "krucki03"]
[Black "Elaisaz"]
[WhiteElo "2465"]
[BlackElo "2222"]
[Result "0-1"]
[Round "6"]
[TimeControl "180+2"]
[Date "2023.06.13"]
[WhiteClock "0:00:18"]
[BlackClock "0:00:32"]
[Board "128"]

1. a4 {[%clk 0:02:59]}  a6 {[%clk 0:02:45]} 2. h4 {[%clk 0:02:57]}  e5 {[%clk 0:02:43]} 3. e3 {[%clk 0:02:51]}  d5 {[%clk 0:02:43]} 4. d3 {[%clk 0:02:51]}  Nf6 {[%clk 0:02:42]} 5. h5 {[%clk 0:02:51]}  h6 {[%clk 0:02:42]} 6. a5 {[%clk 0:02:48]}  Nc6 {[%clk 0:02:39]} 7. Be2 {[%clk 0:02:49]}  Be6 {[%clk 0:02:23]} 8. Bd2 {[%clk 0:02:47]}  Bc5 {[%clk 0:02:19]} 9. c3 {[%clk 0:02:43]}  Qd7 {[%clk 0:02:05]} 10. d4 {[%clk 0:02:43]}  Bd6 {[%clk 0:02:05]} 11. dxe5 {[%clk 0:02:39]}  Nxe5 {[%clk 0:02:04]} 12. Nf3 {[%clk 0:02:40]}  c5 {[%clk 0:01:43]} 13. Na3 {[%clk 0:02:38]}  O-O {[%clk 0:01:37]} 14. Nc2 {[%clk 0:02:33]}  Rfe8 {[%clk 0:01:34]} 15. b4 {[%clk 0:02:29]}  Rad8 {[%clk 0:01:22]} 16. Rb1 {[%clk 0:02:24]}  Nc4 {[%clk 0:01:13]} 17. bxc5 {[%clk 0:02:17]}  Bxc5 {[%clk 0:01:13]} 18. Ncd4 {[%clk 0:02:18]}  Bg4 {[%clk 0:01:10]} 19. Qc2 {[%clk 0:02:12]}  Bxh5 {[%clk 0:01:07]} 20. Bd3 {[%clk 0:02:12]}  Ne5 {[%clk 0:00:58]} 21. Nxe5 {[%clk 0:02:03]}  Rxe5 {[%clk 0:00:59]} 22. f3 {[%clk 0:01:55]}  Rg5 {[%clk 0:00:46]} 23. Kf2 {[%clk 0:01:53]}  Bg6 {[%clk 0:00:44]} 24. Bxg6 {[%clk 0:00:36]}  Rxg6 {[%clk 0:00:45]} 25. Qb3 {[%clk 0:00:36]}  Bxd4 {[%clk 0:00:35]} 26. cxd4 {[%clk 0:00:36]}  Qf5 {[%clk 0:00:35]} 27. Kg1 {[%clk 0:00:28]}  Qxf3 {[%clk 0:00:34]} 28. Rh2 {[%clk 0:00:26]}  Ne4 {[%clk 0:00:32]} 29. Bb4 {[%clk 0:00:18]}  Qf2+ {[%clk 0:00:31]} 30. Kh1 {[%clk 0:00:18]}  Ng3# {[%clk 0:00:32]} 0-1


[Site "https://www.chess.com"]

[Event "Titled Tuesday Blitz June 13 Late 2023"]
[White "SergioMoralesG"]
[Black "Lopez Perdomo, Juan David"]
[BlackFideId "4405137"]
[WhiteElo "2463"]
[BlackElo "1965"]
[Result "0-1"]
[Round "6"]
[TimeControl "180+2"]
[Date "2023.06.13"]
[WhiteClock "0:00:00"]
[BlackClock "0:00:08"]
[Board "129"]

1. e4 {[%clk 0:03:00]}  e6 {[%clk 0:02:59]} 2. d4 {[%clk 0:03:00]}  d5 {[%clk 0:03:00]} 3. Nc3 {[%clk 0:03:00]}  Bb4 {[%clk 0:03:01]} 4. e5 {[%clk 0:02:59]}  c5 {[%clk 0:03:01]} 5. a3 {[%clk 0:02:58]}  Ba5 {[%clk 0:03:02]} 6. dxc5 {[%clk 0:02:53]}  Bxc3+ {[%clk 0:03:01]} 7. bxc3 {[%clk 0:02:52]}  Nd7 {[%clk 0:03:02]} 8. Qg4 {[%clk 0:02:49]}  Nxe5 {[%clk 0:02:19]} 9. Qxg7 {[%clk 0:02:45]}  Qf6 {[%clk 0:02:13]} 10. Qg3 {[%clk 0:02:35]}  Ne7 {[%clk 0:01:53]} 11. Be2 {[%clk 0:02:20]}  Nf5 {[%clk 0:01:52]} 12. Qf4 {[%clk 0:02:15]}  Ng6 {[%clk 0:01:48]} 13. Qa4+ {[%clk 0:02:08]}  Bd7 {[%clk 0:01:48]} 14. Bb5 {[%clk 0:02:05]}  Qxc3+ {[%clk 0:01:44]} 15. Kf1 {[%clk 0:01:57]}  Qxa1 {[%clk 0:01:07]} 16. Bxd7+ {[%clk 0:01:56]}  Ke7 {[%clk 0:00:49]} 17. Ne2 {[%clk 0:01:55]}  a6 {[%clk 0:00:41]} 18. Qb4 {[%clk 0:01:38]}  a5 {[%clk 0:00:20]} 19. Qxb7 {[%clk 0:01:30]}  Rhb8 {[%clk 0:00:21]} 20. Qc7 {[%clk 0:01:28]}  Qe5 {[%clk 0:00:20]} 21. Qxe5 {[%clk 0:01:05]}  Nxe5 {[%clk 0:00:21]} 22. Ba4 {[%clk 0:01:05]}  Rc8 {[%clk 0:00:15]} 23. Bf4 {[%clk 0:00:53]}  Ng6 {[%clk 0:00:13]} 24. c6 {[%clk 0:00:41]}  Nxf4 {[%clk 0:00:10]} 25. Nxf4 {[%clk 0:00:42]}  Rab8 {[%clk 0:00:11]} 26. Ke2 {[%clk 0:00:37]}  Nd4+ {[%clk 0:00:11]} 27. Kd2 {[%clk 0:00:30]}  Nxc6 {[%clk 0:00:12]} 28. Re1 {[%clk 0:00:30]}  Kd6 {[%clk 0:00:11]} 29. Re3 {[%clk 0:00:21]}  Nd4 {[%clk 0:00:10]} 30. Kc1 {[%clk 0:00:16]}  Rc4 {[%clk 0:00:10]} 31. c3 {[%clk 0:00:03]}  Rbc8 {[%clk 0:00:05]} 32. Kd2 {[%clk 0:00:01]}  Rxa4 {[%clk 0:00:04]} 33. cxd4 {[%clk 0:00:01]}  Rxd4+ {[%clk 0:00:05]} 34. Nd3 {[%clk 0:00:02]}  e5 {[%clk 0:00:05]} 35. Rh3 {[%clk 0:00:01]}  e4 {[%clk 0:00:05]} 36. Rh6+ {[%clk 0:00:01]}  Ke7 {[%clk 0:00:05]} 37. Ke3 {[%clk 0:00:01]}  Rxd3+ {[%clk 0:00:06]} 38. Kf4 {[%clk 0:00:02]}  Rxa3 {[%clk 0:00:07]} 39. Ke5 {[%clk 0:00:01]}  Rd3 {[%clk 0:00:07]} 40. Rxh7 {[%clk 0:00:02]}  Ra8 {[%clk 0:00:06]} 41. g4 {[%clk 0:00:02]}  a4 {[%clk 0:00:07]} 42. g5 {[%clk 0:00:02]}  Rg8 {[%clk 0:00:07]} 43. h4 {[%clk 0:00:01]}  a3 {[%clk 0:00:07]} 44. f4 {[%clk 0:00:00]}  a2 {[%clk 0:00:08]} 0-1


[Site "https://www.chess.com"]